[Event "Titled Tuesday Blitz August 02 Late 2022"]
[White "Popilski, Gil"]
[Black "Alekseenko, Kirill"]
[WhiteFideId "2809060"]
[BlackFideId "4135539"]
[WhiteElo "2537"]
[BlackElo "2682"]
[Result "1/2-1/2"]
[Round "02"]
[TimeControl "180+1"]
[Date "2022.08.02"]
[WhiteClock "0:00:11"]
[BlackClock "0:00:22"]

1. e4 {[%clk 0:03:00]}  e5 {[%clk 0:02:58]} 2. Nf3 {[%clk 0:03:00]}  Nc6 {[%clk 0:02:59]} 3. d4 {[%clk 0:03:00]}  exd4 {[%clk 0:02:58]} 4. Nxd4 {[%clk 0:03:01]}  Qf6 {[%clk 0:02:59]} 5. Be3 {[%clk 0:02:59]}  Bc5 {[%clk 0:02:55]} 6. c3 {[%clk 0:02:59]}  Nge7 {[%clk 0:02:53]} 7. Nc2 {[%clk 0:02:54]}  Bxe3 {[%clk 0:02:45]} 8. Nxe3 {[%clk 0:02:55]}  d6 {[%clk 0:02:45]} 9. Bd3 {[%clk 0:02:52]}  Ne5 {[%clk 0:02:38]} 10. Bc2 {[%clk 0:02:48]}  Bd7 {[%clk 0:02:19]} 11. O-O {[%clk 0:02:47]}  O-O-O {[%clk 0:02:20]} 12. f4 {[%clk 0:02:45]}  N5g6 {[%clk 0:02:16]} 13. Kh1 {[%clk 0:02:30]}  h5 {[%clk 0:02:15]} 14. Nd2 {[%clk 0:02:29]}  Kb8 {[%clk 0:02:09]} 15. a4 {[%clk 0:02:22]}  h4 {[%clk 0:02:08]} 16. Ng4 {[%clk 0:02:17]}  Bxg4 {[%clk 0:02:08]} 17. Qxg4 {[%clk 0:02:18]}  Nc6 {[%clk 0:01:39]} 18. a5 {[%clk 0:02:13]}  a6 {[%clk 0:01:40]} 19. Bb3 {[%clk 0:02:07]}  Nge7 {[%clk 0:01:37]} 20. Nf3 {[%clk 0:01:56]}  g6 {[%clk 0:01:14]} 21. Ng5 {[%clk 0:01:45]}  Rdf8 {[%clk 0:01:14]} 22. e5 {[%clk 0:01:19]}  dxe5 {[%clk 0:01:05]} 23. fxe5 {[%clk 0:01:20]}  Nxe5 {[%clk 0:01:05]} 24. Rxf6 {[%clk 0:01:10]}  Nxg4 {[%clk 0:01:05]} 25. Rxf7 {[%clk 0:01:10]}  Rxf7 {[%clk 0:01:04]} 26. Nxf7 {[%clk 0:01:10]}  Rf8 {[%clk 0:01:04]} 27. Re1 {[%clk 0:01:09]}  Nc6 {[%clk 0:01:03]} 28. Kg1 {[%clk 0:01:04]}  Nxa5 {[%clk 0:00:51]} 29. Ba2 {[%clk 0:01:04]}  Nc6 {[%clk 0:00:46]} 30. Re4 {[%clk 0:01:02]}  Nf6 {[%clk 0:00:34]} 31. Rxh4 {[%clk 0:01:01]}  Ka7 {[%clk 0:00:33]} 32. Rh6 {[%clk 0:00:45]}  Ne4 {[%clk 0:00:22]} 33. Rxg6 {[%clk 0:00:43]}  Nc5 {[%clk 0:00:23]} 34. Rg4 {[%clk 0:00:34]}  Nd3 {[%clk 0:00:23]} 35. b4 {[%clk 0:00:33]}  Re8 {[%clk 0:00:24]} 36. h4 {[%clk 0:00:31]}  Re1+ {[%clk 0:00:24]} 37. Kh2 {[%clk 0:00:31]}  Nf2 {[%clk 0:00:23]} 38. Rf4 {[%clk 0:00:29]}  Ne4 {[%clk 0:00:23]} 39. Bd5 {[%clk 0:00:24]}  Nxc3 {[%clk 0:00:20]} 40. Bxc6 {[%clk 0:00:24]}  bxc6 {[%clk 0:00:21]} 41. h5 {[%clk 0:00:24]}  Nd5 {[%clk 0:00:22]} 42. Rh4 {[%clk 0:00:24]}  Nf6 {[%clk 0:00:22]} 43. h6 {[%clk 0:00:23]}  Nh7 {[%clk 0:00:22]} 44. Rh5 {[%clk 0:00:21]}  Re6 {[%clk 0:00:20]} 45. Kg3 {[%clk 0:00:16]}  Rf6 {[%clk 0:00:20]} 46. Ne5 {[%clk 0:00:16]}  c5 {[%clk 0:00:20]} 47. bxc5 {[%clk 0:00:16]}  a5 {[%clk 0:00:21]} 48. Kg4 {[%clk 0:00:13]}  a4 {[%clk 0:00:20]} 49. Rh3 {[%clk 0:00:13]}  Ra6 {[%clk 0:00:19]} 50. Ra3 {[%clk 0:00:10]}  Rxh6 {[%clk 0:00:18]} 51. Rxa4+ {[%clk 0:00:10]}  Kb7 {[%clk 0:00:19]} 52. Rb4+ {[%clk 0:00:10]}  Kc8 {[%clk 0:00:18]} 53. Kf5 {[%clk 0:00:10]}  Rf6+ {[%clk 0:00:18]} 54. Ke4 {[%clk 0:00:10]}  Ng5+ {[%clk 0:00:19]} 55. Kd5 {[%clk 0:00:11]}  Rf1 {[%clk 0:00:17]} 56. Nc6 {[%clk 0:00:08]}  Rd1+ {[%clk 0:00:16]} 57. Ke5 {[%clk 0:00:08]}  Kd7 {[%clk 0:00:16]} 58. Rd4+ {[%clk 0:00:08]}  Rxd4 {[%clk 0:00:16]} 59. Nxd4 {[%clk 0:00:08]}  Nf7+ {[%clk 0:00:17]} 60. Kf6 {[%clk 0:00:08]}  Nh6 {[%clk 0:00:16]} 61. Kg5 {[%clk 0:00:08]}  Nf7+ {[%clk 0:00:17]} 62. Kf6 {[%clk 0:00:08]}  Nh6 {[%clk 0:00:17]} 63. Nb5 {[%clk 0:00:08]}  Kc6 {[%clk 0:00:18]} 64. Nxc7 {[%clk 0:00:08]}  Kxc7 {[%clk 0:00:17]} 65. Kg6 {[%clk 0:00:08]}  Ng4 {[%clk 0:00:18]} 66. Kg5 {[%clk 0:00:09]}  Ne3 {[%clk 0:00:18]} 67. g3 {[%clk 0:00:09]}  Nf1 {[%clk 0:00:18]} 68. g4 {[%clk 0:00:09]}  Ne3 {[%clk 0:00:19]} 69. Kf4 {[%clk 0:00:10]}  Nxg4 {[%clk 0:00:20]} 70. Kxg4 {[%clk 0:00:11]}  Kc6 {[%clk 0:00:21]} 71. Kh5 {[%clk 0:00:11]}  Kxc5 {[%clk 0:00:22]} 1/2-1/2


[Site "https://www.chess.com"]

[Event "Titled Tuesday Blitz August 02 Late 2022"]
[White "Salem, A.R. Saleh"]
[Black "Poltorak, Sebastian"]
[WhiteFideId "9301348"]
[BlackFideId "1199498"]
[WhiteElo "2679"]
[BlackElo "2104"]
[Result "1-0"]
[Round "02"]
[TimeControl "180+1"]
[Date "2022.08.02"]
[WhiteClock "0:00:07"]
[BlackClock "0:00:13"]

1. d4 {[%clk 0:03:00]}  Nf6 {[%clk 0:02:59]} 2. c4 {[%clk 0:03:01]}  g6 {[%clk 0:02:54]} 3. Nc3 {[%clk 0:03:01]}  d5 {[%clk 0:02:55]} 4. cxd5 {[%clk 0:03:02]}  Nxd5 {[%clk 0:02:55]} 5. e4 {[%clk 0:03:03]}  Nxc3 {[%clk 0:02:56]} 6. bxc3 {[%clk 0:03:04]}  Bg7 {[%clk 0:02:56]} 7. Bc4 {[%clk 0:03:04]}  c5 {[%clk 0:02:56]} 8. Ne2 {[%clk 0:03:05]}  Nc6 {[%clk 0:02:56]} 9. Be3 {[%clk 0:03:05]}  O-O {[%clk 0:02:56]} 10. O-O {[%clk 0:03:04]}  e6 {[%clk 0:02:56]} 11. Rc1 {[%clk 0:03:02]}  Qc7 {[%clk 0:02:49]} 12. h4 {[%clk 0:03:01]}  Rd8 {[%clk 0:02:45]} 13. h5 {[%clk 0:02:58]}  Ne5 {[%clk 0:02:39]} 14. Bf4 {[%clk 0:02:58]}  Qe7 {[%clk 0:02:32]} 15. Bb3 {[%clk 0:02:58]}  Nc6 {[%clk 0:02:23]} 16. h6 {[%clk 0:02:56]}  Bh8 {[%clk 0:02:19]} 17. Be3 {[%clk 0:02:54]}  Na5 {[%clk 0:02:10]} 18. Qd2 {[%clk 0:02:24]}  Nxb3 {[%clk 0:02:08]} 19. axb3 {[%clk 0:02:25]}  b6 {[%clk 0:02:06]} 20. Ng3 {[%clk 0:01:52]}  Bb7 {[%clk 0:02:02]} 21. Rcd1 {[%clk 0:01:47]}  Rd7 {[%clk 0:01:57]} 22. Qe2 {[%clk 0:01:38]}  Rad8 {[%clk 0:01:54]} 23. e5 {[%clk 0:01:38]}  cxd4 {[%clk 0:01:48]} 24. cxd4 {[%clk 0:01:39]}  f6 {[%clk 0:01:47]} 25. f4 {[%clk 0:01:29]}  fxe5 {[%clk 0:01:23]} 26. fxe5 {[%clk 0:01:30]}  Qh4 {[%clk 0:01:24]} 27. Qf2 {[%clk 0:01:30]}  Ba6 {[%clk 0:01:24]} 28. Qf3 {[%clk 0:01:14]}  Bb7 {[%clk 0:01:18]} 29. Qf2 {[%clk 0:01:06]}  Ba6 {[%clk 0:01:19]} 30. Ra1 {[%clk 0:00:45]}  Bxf1 {[%clk 0:01:17]} 31. Rxf1 {[%clk 0:00:46]}  Qe7 {[%clk 0:01:11]} 32. Ne4 {[%clk 0:00:27]}  Rf8 {[%clk 0:01:11]} 33. Qe2 {[%clk 0:00:18]}  Rxf1+ {[%clk 0:01:10]} 34. Qxf1 {[%clk 0:00:19]}  Rc7 {[%clk 0:00:57]} 35. Bg5 {[%clk 0:00:16]}  Qf7 {[%clk 0:00:46]} 36. Qb5 {[%clk 0:00:14]}  Qd7 {[%clk 0:00:45]} 37. Qd3 {[%clk 0:00:13]}  Bxe5 {[%clk 0:00:43]} 38. Bf6 {[%clk 0:00:13]}  Bf4 {[%clk 0:00:11]} 39. Bg7 {[%clk 0:00:12]}  Rc1+ {[%clk 0:00:11]} 40. Kf2 {[%clk 0:00:13]}  Qc6 {[%clk 0:00:09]} 41. Kf3 {[%clk 0:00:07]}  Bc7 {[%clk 0:00:06]} 42. Kg4 {[%clk 0:00:08]}  Qc2 {[%clk 0:00:04]} 43. Qf3 {[%clk 0:00:06]}  Qd1 {[%clk 0:00:05]} 44. Nf6+ {[%clk 0:00:03]}  Kf7 {[%clk 0:00:05]} 45. Nxh7+ {[%clk 0:00:04]}  Qxf3+ {[%clk 0:00:04]} 46. Kxf3 {[%clk 0:00:05]}  Rh1 {[%clk 0:00:03]} 47. Ng5+ {[%clk 0:00:05]}  Kg8 {[%clk 0:00:03]} 48. Bf6 {[%clk 0:00:06]}  Bd6 {[%clk 0:00:02]} 49. h7+ {[%clk 0:00:06]}  Rxh7 {[%clk 0:00:03]} 50. Nxh7 {[%clk 0:00:06]}  Kxh7 {[%clk 0:00:04]} 51. Ke4 {[%clk 0:00:07]}  Kg8 {[%clk 0:00:04]} 52. d5 {[%clk 0:00:08]}  exd5+ {[%clk 0:00:04]} 53. Kxd5 {[%clk 0:00:08]}  Bf4 {[%clk 0:00:05]} 54. Kc6 {[%clk 0:00:09]}  Be3 {[%clk 0:00:05]} 55. Kb7 {[%clk 0:00:08]}  a5 {[%clk 0:00:05]} 56. Bd8 {[%clk 0:00:09]}  b5 {[%clk 0:00:05]} 57. Bxa5 {[%clk 0:00:09]}  Kf7 {[%clk 0:00:06]} 58. Kc6 {[%clk 0:00:10]}  Ke6 {[%clk 0:00:05]} 59. Kxb5 {[%clk 0:00:10]}  Kf5 {[%clk 0:00:06]} 60. Bb6 {[%clk 0:00:11]}  Ke4 {[%clk 0:00:06]} 61. Bxe3 {[%clk 0:00:04]}  Kxe3 {[%clk 0:00:07]} 62. b4 {[%clk 0:00:05]}  Kf2 {[%clk 0:00:08]} 63. g4 {[%clk 0:00:04]}  Kg3 {[%clk 0:00:09]} 64. Kc6 {[%clk 0:00:05]}  Kxg4 {[%clk 0:00:09]} 65. b5 {[%clk 0:00:05]}  Kf4 {[%clk 0:00:10]} 66. b6 {[%clk 0:00:06]}  g5 {[%clk 0:00:11]} 67. b7 {[%clk 0:00:06]}  g4 {[%clk 0:00:12]} 68. b8=Q+ {[%clk 0:00:07]}  Kf3 {[%clk 0:00:13]} 69. Qh2 {[%clk 0:00:07]} 1-0


[Site "https://www.chess.com"]

[Event "Titled Tuesday Blitz August 02 Late 2022"]
[White "Sarana, Alexey"]
[Black "Katz, Alexander"]
[WhiteFideId "24133795"]
[BlackFideId "2039796"]
[WhiteElo "2666"]
[BlackElo "2386"]
[Result "1-0"]
[Round "02"]
[TimeControl "180+1"]
[Date "2022.08.02"]
[WhiteClock "0:00:35"]
[BlackClock "0:00:15"]

1. c4 {[%clk 0:02:51]}  e5 {[%clk 0:02:59]} 2. Nc3 {[%clk 0:02:47]}  f5 {[%clk 0:02:57]} 3. g3 {[%clk 0:02:45]}  Nf6 {[%clk 0:02:57]} 4. Bg2 {[%clk 0:02:45]}  Nc6 {[%clk 0:02:56]} 5. d3 {[%clk 0:02:46]}  Be7 {[%clk 0:02:53]} 6. Nf3 {[%clk 0:02:46]}  O-O {[%clk 0:02:52]} 7. O-O {[%clk 0:02:46]}  d6 {[%clk 0:02:51]} 8. Rb1 {[%clk 0:02:45]}  h6 {[%clk 0:02:51]} 9. b4 {[%clk 0:02:45]}  a6 {[%clk 0:02:51]} 10. b5 {[%clk 0:02:42]}  axb5 {[%clk 0:02:50]} 11. cxb5 {[%clk 0:02:43]}  Na5 {[%clk 0:02:48]} 12. Nd2 {[%clk 0:02:37]}  Be6 {[%clk 0:02:46]} 13. e3 {[%clk 0:02:36]}  f4 {[%clk 0:02:39]} 14. exf4 {[%clk 0:02:24]}  exf4 {[%clk 0:02:39]} 15. Re1 {[%clk 0:02:25]}  Qd7 {[%clk 0:02:34]} 16. Qe2 {[%clk 0:02:23]}  Kf7 {[%clk 0:02:14]} 17. gxf4 {[%clk 0:02:23]}  Rae8 {[%clk 0:02:08]} 18. Nce4 {[%clk 0:02:17]}  Bg4 {[%clk 0:01:50]} 19. Nf3 {[%clk 0:02:15]}  Kg8 {[%clk 0:01:45]} 20. h3 {[%clk 0:02:11]}  Bh5 {[%clk 0:01:42]} 21. Ng3 {[%clk 0:02:09]}  Bf7 {[%clk 0:01:40]} 22. Bb2 {[%clk 0:02:05]}  b6 {[%clk 0:01:38]} 23. Bc3 {[%clk 0:02:03]}  Nd5 {[%clk 0:01:37]} 24. Bxa5 {[%clk 0:01:52]}  Nxf4 {[%clk 0:01:34]} 25. Qe4 {[%clk 0:01:39]}  Bd5 {[%clk 0:01:29]} 26. Qd4 {[%clk 0:01:33]}  bxa5 {[%clk 0:01:18]} 27. Nh5 {[%clk 0:01:31]}  Bg5 {[%clk 0:00:45]} 28. Nxg5 {[%clk 0:01:02]}  Rxe1+ {[%clk 0:00:33]} 29. Rxe1 {[%clk 0:01:01]}  Bxg2 {[%clk 0:00:29]} 30. Nxf4 {[%clk 0:00:57]}  Ba8 {[%clk 0:00:24]} 31. Nge6 {[%clk 0:00:45]}  Rf5 {[%clk 0:00:21]} 32. Kh2 {[%clk 0:00:43]}  Qf7 {[%clk 0:00:19]} 33. Rg1 {[%clk 0:00:42]}  g5 {[%clk 0:00:20]} 34. h4 {[%clk 0:00:40]}  Kh7 {[%clk 0:00:20]} 35. hxg5 {[%clk 0:00:39]}  Rxf4 {[%clk 0:00:15]} 36. Nxf4 {[%clk 0:00:35]} 1-0


[Site "https://www.chess.com"]

[Event "Titled Tuesday Blitz August 02 Late 2022"]
[White "Shapiro, David"]
[Black "Xiong, Jeffery"]
[WhiteFideId "24133523"]
[BlackFideId "2047640"]
[WhiteElo "2300"]
[BlackElo "2714"]
[Result "1-0"]
[Round "02"]
[TimeControl "180+1"]
[Date "2022.08.02"]
[WhiteClock "0:01:02"]
[BlackClock "0:00:45"]

1. e4 {[%clk 0:02:58]}  c5 {[%clk 0:02:59]} 2. Nf3 {[%clk 0:02:58]}  d6 {[%clk 0:03:00]} 3. d4 {[%clk 0:02:58]}  cxd4 {[%clk 0:03:01]} 4. Nxd4 {[%clk 0:02:59]}  Nf6 {[%clk 0:03:01]} 5. Nc3 {[%clk 0:03:00]}  a6 {[%clk 0:03:01]} 6. Bg5 {[%clk 0:02:56]}  Nbd7 {[%clk 0:03:01]} 7. f4 {[%clk 0:02:51]}  Qc7 {[%clk 0:02:53]} 8. Qf3 {[%clk 0:02:47]}  g6 {[%clk 0:02:50]} 9. O-O-O {[%clk 0:02:29]}  Bg7 {[%clk 0:02:50]} 10. Nd5 {[%clk 0:02:28]}  Nxd5 {[%clk 0:02:49]} 11. exd5 {[%clk 0:02:26]}  Nf6 {[%clk 0:02:21]} 12. f5 {[%clk 0:02:21]}  Qa5 {[%clk 0:02:20]} 13. Bc4 {[%clk 0:02:12]}  O-O {[%clk 0:01:55]} 14. Rhe1 {[%clk 0:02:07]}  Bxf5 {[%clk 0:01:47]} 15. Nxf5 {[%clk 0:02:04]}  gxf5 {[%clk 0:01:48]} 16. Qxf5 {[%clk 0:01:59]}  Rfc8 {[%clk 0:01:48]} 17. Rxe7 {[%clk 0:01:28]}  Rxc4 {[%clk 0:01:28]} 18. Bxf6 {[%clk 0:01:28]}  Bh6+ {[%clk 0:00:45]} 19. Bg5 {[%clk 0:01:02]} 1-0


[Site "https://www.chess.com"]

[Event "Titled Tuesday Blitz August 02 Late 2022"]
[White "Shohat, Yotam"]
[Black "Sjugirov, Sanan"]
[WhiteFideId "2813955"]
[BlackFideId "4189302"]
[WhiteElo "2119"]
[BlackElo "2609"]
[Result "0-1"]
[Round "02"]
[TimeControl "180+1"]
[Date "2022.08.02"]
[WhiteClock "0:02:22"]
[BlackClock "0:02:32"]

1. e4 {[%clk 0:03:00]}  c5 {[%clk 0:02:58]} 2. Nf3 {[%clk 0:03:01]}  e6 {[%clk 0:02:59]} 3. b3 {[%clk 0:03:00]}  a6 {[%clk 0:02:57]} 4. Bb2 {[%clk 0:02:50]}  d5 {[%clk 0:02:57]} 5. exd5 {[%clk 0:02:49]}  exd5 {[%clk 0:02:58]} 6. c4 {[%clk 0:02:49]}  d4 {[%clk 0:02:55]} 7. d3 {[%clk 0:02:50]}  Nc6 {[%clk 0:02:55]} 8. Be2 {[%clk 0:02:50]}  Bd6 {[%clk 0:02:52]} 9. O-O {[%clk 0:02:50]}  Nf6 {[%clk 0:02:51]} 10. a3 {[%clk 0:02:49]}  a5 {[%clk 0:02:47]} 11. Re1 {[%clk 0:02:41]}  O-O {[%clk 0:02:47]} 12. Nfd2 {[%clk 0:02:42]}  Bf5 {[%clk 0:02:45]} 13. Qc2 {[%clk 0:02:40]}  Re8 {[%clk 0:02:44]} 14. h3 {[%clk 0:02:30]}  Ne5 {[%clk 0:02:39]} 15. Ne4 {[%clk 0:02:29]}  Bxe4 {[%clk 0:02:36]} 16. dxe4 {[%clk 0:02:29]}  d3 {[%clk 0:02:36]} 17. Bxd3 {[%clk 0:02:22]}  Nxd3 {[%clk 0:02:37]} 18. Rd1 {[%clk 0:02:21]}  Nxb2 {[%clk 0:02:34]} 19. Qxb2 {[%clk 0:02:22]}  Bh2+ {[%clk 0:02:32]} 0-1


[Site "https://www.chess.com"]

[Event "Titled Tuesday Blitz August 02 Late 2022"]
[White "Szabo, Marcell"]
[Black "Svane, Frederik"]
[WhiteFideId "2072033"]
[BlackFideId "12923044"]
[WhiteElo "1777"]
[BlackElo "2459"]
[Result "0-1"]
[Round "02"]
[TimeControl "180+1"]
[Date "2022.08.02"]
[WhiteClock "0:01:22"]
[BlackClock "0:02:02"]

1. e4 {[%clk 0:03:00]}  b6 {[%clk 0:03:00]} 2. d4 {[%clk 0:03:01]}  Bb7 {[%clk 0:03:00]} 3. Nc3 {[%clk 0:03:01]}  e6 {[%clk 0:03:01]} 4. Bd3 {[%clk 0:03:01]}  Bb4 {[%clk 0:03:02]} 5. Bd2 {[%clk 0:03:01]}  Nf6 {[%clk 0:03:01]} 6. Qe2 {[%clk 0:03:00]}  d5 {[%clk 0:02:53]} 7. e5 {[%clk 0:03:00]}  Bxc3 {[%clk 0:02:54]} 8. bxc3 {[%clk 0:02:59]}  Ne4 {[%clk 0:02:52]} 9. Bxe4 {[%clk 0:02:59]}  dxe4 {[%clk 0:02:53]} 10. Nh3 {[%clk 0:02:56]}  Nc6 {[%clk 0:02:51]} 11. Qxe4 {[%clk 0:02:44]}  Na5 {[%clk 0:02:52]} 12. Qg4 {[%clk 0:02:40]}  Qd5 {[%clk 0:02:52]} 13. Nf4 {[%clk 0:02:38]}  Qe4+ {[%clk 0:02:49]} 14. Qe2 {[%clk 0:02:37]}  Qc6 {[%clk 0:02:43]} 15. f3 {[%clk 0:02:25]}  O-O-O {[%clk 0:02:42]} 16. Nd3 {[%clk 0:02:24]}  Rhg8 {[%clk 0:02:31]} 17. Nb4 {[%clk 0:02:24]}  Qa4 {[%clk 0:02:31]} 18. O-O {[%clk 0:02:19]}  g5 {[%clk 0:02:29]} 19. Qd3 {[%clk 0:01:53]}  g4 {[%clk 0:02:22]} 20. f4 {[%clk 0:01:52]}  c5 {[%clk 0:02:15]} 21. Qxh7 {[%clk 0:01:41]}  cxb4 {[%clk 0:02:14]} 22. Qxf7 {[%clk 0:01:41]}  Qc6 {[%clk 0:02:14]} 23. Rf2 {[%clk 0:01:38]}  g3 {[%clk 0:02:14]} 24. Rf3 {[%clk 0:01:28]}  gxh2+ {[%clk 0:02:14]} 25. Kh1 {[%clk 0:01:25]}  Rxg2 {[%clk 0:02:08]} 26. Raf1 {[%clk 0:01:23]}  Rg1+ {[%clk 0:02:03]} 27. Rxg1 {[%clk 0:01:23]}  Qxf3+ {[%clk 0:02:02]} 28. Kxh2 {[%clk 0:01:23]}  Rh8+ {[%clk 0:02:02]} 29. Qh7 {[%clk 0:01:22]}  Rxh7# {[%clk 0:02:02]} 0-1


[Site "https://www.chess.com"]

[Event "Titled Tuesday Blitz August 02 Late 2022"]
[White "Tatarinov, Dmitry"]
[Black "Naroditsky, Daniel"]
[WhiteFideId "24160067"]
[BlackFideId "2026961"]
[WhiteElo "2302"]
[BlackElo "2608"]
[Result "0-1"]
[Round "02"]
[TimeControl "180+1"]
[Date "2022.08.02"]
[WhiteClock "0:00:30"]
[BlackClock "0:00:28"]

1. d4 {[%clk 0:03:00]}  Nf6 {[%clk 0:03:00]} 2. c4 {[%clk 0:03:01]}  g6 {[%clk 0:03:00]} 3. g3 {[%clk 0:02:57]}  Bg7 {[%clk 0:03:00]} 4. Bg2 {[%clk 0:02:58]}  d6 {[%clk 0:03:00]} 5. Nc3 {[%clk 0:02:57]}  O-O {[%clk 0:03:01]} 6. Nf3 {[%clk 0:02:57]}  Nbd7 {[%clk 0:03:02]} 7. O-O {[%clk 0:02:57]}  e5 {[%clk 0:03:03]} 8. e4 {[%clk 0:02:56]}  exd4 {[%clk 0:03:03]} 9. Nxd4 {[%clk 0:02:57]}  Re8 {[%clk 0:03:04]} 10. f3 {[%clk 0:02:56]}  c6 {[%clk 0:03:03]} 11. Re1 {[%clk 0:02:54]}  d5 {[%clk 0:02:58]} 12. cxd5 {[%clk 0:02:49]}  cxd5 {[%clk 0:02:58]} 13. exd5 {[%clk 0:02:46]}  Rxe1+ {[%clk 0:02:51]} 14. Qxe1 {[%clk 0:02:46]}  Nb6 {[%clk 0:02:52]} 15. Kh1 {[%clk 0:02:41]}  Nfxd5 {[%clk 0:02:25]} 16. Nde2 {[%clk 0:02:23]}  Nb4 {[%clk 0:02:09]} 17. Qg1 {[%clk 0:02:23]}  Nd3 {[%clk 0:02:00]} 18. f4 {[%clk 0:02:14]}  Bg4 {[%clk 0:01:48]} 19. Be3 {[%clk 0:02:08]}  Nc4 {[%clk 0:01:39]} 20. Bd4 {[%clk 0:02:05]}  Bxd4 {[%clk 0:01:33]} 21. Nxd4 {[%clk 0:01:55]}  Qb6 {[%clk 0:01:17]} 22. b3 {[%clk 0:01:47]}  Nd6 {[%clk 0:00:43]} 23. Nd5 {[%clk 0:01:44]}  Qd8 {[%clk 0:00:44]} 24. h3 {[%clk 0:01:42]}  Bxh3 {[%clk 0:00:37]} 25. Bxh3 {[%clk 0:01:35]}  Ne4 {[%clk 0:00:38]} 26. Qe3 {[%clk 0:00:34]}  Qxd5 {[%clk 0:00:32]} 27. Bg2 {[%clk 0:00:34]}  Rd8 {[%clk 0:00:28]} 28. Qxe4 {[%clk 0:00:30]}  Nf2+ {[%clk 0:00:28]} 0-1


[Site "https://www.chess.com"]

[Event "Titled Tuesday Blitz August 02 Late 2022"]
[White "Tica, Sven"]
[Black "Steinberg, Nitzan"]
[WhiteFideId "14526948"]
[BlackFideId "2801795"]
[WhiteElo "2346"]
[BlackElo "2471"]
[Result "0-1"]
[Round "02"]
[TimeControl "180+1"]
[Date "2022.08.02"]
[WhiteClock "0:00:09"]
[BlackClock "0:00:11"]

1. e4 {[%clk 0:03:00]}  g6 {[%clk 0:02:56]} 2. d4 {[%clk 0:02:59]}  Bg7 {[%clk 0:02:56]} 3. Be3 {[%clk 0:02:55]}  c5 {[%clk 0:02:55]} 4. c3 {[%clk 0:02:55]}  Nf6 {[%clk 0:02:54]} 5. f3 {[%clk 0:02:48]}  O-O {[%clk 0:02:47]} 6. Qd2 {[%clk 0:02:48]}  d5 {[%clk 0:02:34]} 7. e5 {[%clk 0:02:46]}  Nfd7 {[%clk 0:02:35]} 8. Bd3 {[%clk 0:02:44]}  Nc6 {[%clk 0:02:33]} 9. f4 {[%clk 0:02:41]}  cxd4 {[%clk 0:02:20]} 10. cxd4 {[%clk 0:02:42]}  Nb6 {[%clk 0:02:19]} 11. b3 {[%clk 0:02:38]}  Bf5 {[%clk 0:02:20]} 12. Bxf5 {[%clk 0:02:38]}  gxf5 {[%clk 0:02:20]} 13. Nf3 {[%clk 0:02:38]}  e6 {[%clk 0:02:17]} 14. Nc3 {[%clk 0:02:35]}  a5 {[%clk 0:02:17]} 15. a4 {[%clk 0:02:31]}  Nb4 {[%clk 0:02:17]} 16. O-O {[%clk 0:02:31]}  Rc8 {[%clk 0:02:17]} 17. Rfc1 {[%clk 0:02:31]}  Kh8 {[%clk 0:02:07]} 18. Nb5 {[%clk 0:02:28]}  Rc6 {[%clk 0:02:03]} 19. Na7 {[%clk 0:02:09]}  Rxc1+ {[%clk 0:01:50]} 20. Rxc1 {[%clk 0:02:08]}  Qd7 {[%clk 0:01:46]} 21. Rc5 {[%clk 0:01:48]}  Na6 {[%clk 0:01:46]} 22. Rc3 {[%clk 0:01:39]}  Ra8 {[%clk 0:01:43]} 23. Nb5 {[%clk 0:01:39]}  Bf8 {[%clk 0:01:43]} 24. Qc1 {[%clk 0:01:36]}  Rc8 {[%clk 0:01:38]} 25. Bd2 {[%clk 0:01:32]}  Nb4 {[%clk 0:01:32]} 26. Rxc8 {[%clk 0:01:25]}  Nxc8 {[%clk 0:01:31]} 27. Ne1 {[%clk 0:01:19]}  Qc6 {[%clk 0:01:28]} 28. Kf2 {[%clk 0:01:14]}  Be7 {[%clk 0:01:27]} 29. Ke3 {[%clk 0:01:05]}  Kg8 {[%clk 0:01:26]} 30. Qc3 {[%clk 0:01:03]}  Kf8 {[%clk 0:01:22]} 31. Nd3 {[%clk 0:01:01]}  Ke8 {[%clk 0:01:10]} 32. Qxc6+ {[%clk 0:00:44]}  bxc6 {[%clk 0:01:10]} 33. Bxb4 {[%clk 0:00:42]}  cxb5 {[%clk 0:00:50]} 34. Bxa5 {[%clk 0:00:40]}  bxa4 {[%clk 0:00:49]} 35. bxa4 {[%clk 0:00:41]}  Kd7 {[%clk 0:00:47]} 36. h3 {[%clk 0:00:40]}  h5 {[%clk 0:00:48]} 37. g3 {[%clk 0:00:36]}  Kc6 {[%clk 0:00:43]} 38. Nc1 {[%clk 0:00:35]}  Kb7 {[%clk 0:00:39]} 39. Nb3 {[%clk 0:00:32]}  Na7 {[%clk 0:00:39]} 40. Kf3 {[%clk 0:00:26]}  Nc6 {[%clk 0:00:39]} 41. Be1 {[%clk 0:00:26]}  Ba3 {[%clk 0:00:37]} 42. Bc3 {[%clk 0:00:25]}  Nb8 {[%clk 0:00:27]} 43. g4 {[%clk 0:00:24]}  hxg4+ {[%clk 0:00:28]} 44. hxg4 {[%clk 0:00:25]}  fxg4+ {[%clk 0:00:29]} 45. Kxg4 {[%clk 0:00:26]}  Nd7 {[%clk 0:00:29]} 46. Kg5 {[%clk 0:00:24]}  Bf8 {[%clk 0:00:26]} 47. f5 {[%clk 0:00:22]}  Kc8 {[%clk 0:00:22]} 48. fxe6 {[%clk 0:00:21]}  fxe6 {[%clk 0:00:22]} 49. Kg6 {[%clk 0:00:22]}  Nb6 {[%clk 0:00:23]} 50. a5 {[%clk 0:00:20]}  Na4 {[%clk 0:00:22]} 51. Bd2 {[%clk 0:00:19]}  Ba3 {[%clk 0:00:22]} 52. Kf7 {[%clk 0:00:18]}  Kd7 {[%clk 0:00:22]} 53. a6 {[%clk 0:00:15]}  Nb6 {[%clk 0:00:23]} 54. Ba5 {[%clk 0:00:14]}  Nc8 {[%clk 0:00:21]} 55. Nc5+ {[%clk 0:00:13]}  Bxc5 {[%clk 0:00:21]} 56. dxc5 {[%clk 0:00:14]}  d4 {[%clk 0:00:22]} 57. Bb6 {[%clk 0:00:12]}  d3 {[%clk 0:00:20]} 58. a7 {[%clk 0:00:12]}  Nxa7 {[%clk 0:00:20]} 59. Ba5 {[%clk 0:00:09]}  Nc6 {[%clk 0:00:20]} 60. Bc3 {[%clk 0:00:08]}  Nxe5+ {[%clk 0:00:21]} 61. Kf6 {[%clk 0:00:09]}  Nc4 {[%clk 0:00:21]} 62. c6+ {[%clk 0:00:09]}  Kd6 {[%clk 0:00:16]} 63. c7 {[%clk 0:00:09]}  Nb6 {[%clk 0:00:15]} 64. Ba5 {[%clk 0:00:09]}  Nc8 {[%clk 0:00:15]} 65. Bd2 {[%clk 0:00:08]}  e5 {[%clk 0:00:11]} 66. Bb4+ {[%clk 0:00:08]}  Kd5 {[%clk 0:00:10]} 67. Kf7 {[%clk 0:00:07]}  e4 {[%clk 0:00:11]} 68. Ke8 {[%clk 0:00:08]}  e3 {[%clk 0:00:11]} 69. Kd8 {[%clk 0:00:09]}  Na7 {[%clk 0:00:11]} 0-1


[Site "https://www.chess.com"]